fUSD/lending_fUSD_20260307
["ID","MTS","AMOUNT","RATE_DAILY","PERIOD"]
[407879271,1772874204429,157.84,0.0001136,2]
[407879272,1772874408132,-157.84,0.0001207,2]
[407879273,1772874408154,-38.78539331,0.0001278,2]
[407879284,1772874631682,-119.05460669,0.0001278,2]
[407879285,1772874631693,-255.0,0.0001278,2]
[407879286,1772874631703,-88.32588914,0.00013176,2]
[407879287,1772874631717,-124.39982791,0.00013176,2]
[407879288,1772874631729,-200.0,0.00013248,2]
[407879289,1772874631739,-300.0,0.00013276,2]
[407879290,1772874631748,-300.0,0.00013276,2]
[407879291,1772874631758,-1200.0,0.00013276,2]
[407879292,1772874631767,-276.0,0.00013276,2]
[407879293,1772874631777,-150.0,0.00013333,2]
[407879294,1772874631786,-150.0,0.00013333,14]
[407879295,1772874631795,-519.0,0.00013333,2]
[407879296,1772874631805,-157.84,0.0001349,2]
[407879297,1772874631814,-300.0,0.00014058,2]
[407879298,1772874631823,-250.0,0.00014058,2]
[407879299,1772874631833,-157.84,0.000142,2]
[407879300,1772874631843,-302.0,0.00014555,2]
[407879301,1772874631853,-305.0,0.00014555,2]
[407879302,1772874631863,-1680.0,0.00014603,2]
[407879303,1772874631874,-1118.6269498,0.00014664,2]
[407879304,1772874631888,-1129.1630502,0.00014664,2]
[407879305,1772874631898,-150.99,0.00014664,2]
[407879307,1772874631908,-9999.99,0.00014664,2]
[407879308,1772874631918,-200.0,0.00014815,2]
[407879309,1772874631928,-157.84,0.00014909,2]
[407879310,1772874631937,-448.0,0.00014936,2]
[407879311,1772874631947,-2000.0,0.00014953,2]
[407879312,1772874631957,-250.0,0.00015,2]
[407879313,1772874631967,-193.0,0.00015165,2]
[407879314,1772874631976,-1852.42,0.00015196,2]
[407879315,1772874631986,-157.84,0.00015619,2]
[407879316,1772874631997,-212.72571705,0.00016033,2]
[407879317,1772874632007,-999.99,0.00016054,2]
[407879318,1772874632016,-200.0,0.00016061,2]
[407879319,1772874632026,-383.06032892,0.00016061,2]
[407879320,1772874632036,-593.0,0.00016063,2]
[407879321,1772874632047,-504.59959812,0.000161,2]
[407879322,1772874632057,-164.89,0.00016123,2]
[407879323,1772874632066,-1000.0,0.00016132,2]
[407879324,1772874632075,-2000.0,0.00016133,2]
[407879325,1772874632084,-502.68587184,0.00016173,2]
[407879326,1772874632094,-500.0,0.00016173,2]
[407879327,1772874632104,-1000.0,0.00016199,2]
[407879328,1772874632114,-5000.00917513,0.000162,5]
[407879329,1772874632123,-2000.0,0.00016233,2]
[407879330,1772874632133,-2000.0,0.00016233,2]
[407879331,1772874632142,-200.0,0.00016311,2]
[407879332,1772874632151,-151.0,0.00016333,2]
[407879333,1772874632165,-164.89,0.00016393,2]
[407879334,1772874632174,-737.02,0.00016421,2]
[407879335,1772874632184,-1009.09,0.00016438,3]
[407879336,1772874632193,-544.91,0.00016438,3]
[407879337,1772874632203,-164.89,0.00016663,2]
[407879338,1772874632213,-519.0,0.00016666,4]
[407879339,1772874632223,-166.39,0.00016712,2]
[407879340,1772874632236,-151.0,0.00016776,2]
[407879341,1772874632247,-151.0,0.00016776,2]
[407879342,1772874632257,-2000.0,0.00016822,2]
[407879343,1772874632267,-1816.36,0.00016823,2]
[407879344,1772874632279,-980.84,0.00016823,2]
[407879345,1772874632289,-5622.02504019,0.000169,3]
[407879346,1772874632299,-164.89,0.00016933,2]
[407879347,1772874632310,-53151.19442955,0.00017,2]
[407879348,1772874632323,-86243.77314136,0.00017,2]
[407879349,1772874632337,-20256.28393036,0.00017,2]
[407879350,1772874632349,-1254.41808677,0.00017,2]
[407879351,1772874632365,-433.442,0.00017,2]
[407879352,1772874632387,-405.23147994,0.00017,2]
[407879353,1772874637731,-1343.44849106,0.00017,2]
[407879366,1772874640148,-20239.10372025,0.00017,2]
[407879367,1772874640191,-11507.17640078,0.00017,2]
[407879368,1772874640200,-645.40529788,0.0001701,2]
[407879369,1772874640209,-3503.53647283,0.0001711,2]
[407879370,1772874640219,-164.89,0.00017203,2]
[407879371,1772874640228,-737.02,0.00017242,2]
[407879372,1772874640240,-645.40529788,0.00017331,2]
[407879373,1772874640248,-693.3919763,0.00017377,2]
[407879374,1772874640257,-693.3919763,0.00017377,2]
[407879375,1772874640266,-719.04747942,0.00017432,2]
[407879376,1772874640275,-164.89,0.00017473,2]
[407879377,1772874640285,-250.0,0.00017482,2]
[407879378,1772874640294,-745.65223616,0.00017487,2]
[407879379,1772874640303,-773.2413689,0.00017542,2]
[407879380,1772874640312,-801.85129955,0.00017597,2]
[407879381,1772874640322,-831.51979763,0.00017652,2]
[407879382,1772874640331,-645.40529788,0.00017652,2]
[407879383,1772874640339,-862.28603014,0.00017707,2]
[407879384,1772874640348,-200.0,0.0001774,2]
[407879385,1772874640357,-164.89,0.00017743,2]
[407879386,1772874640366,-894.19061326,0.00017762,2]
[407879387,1772874640375,-927.27566595,0.00017817,2]
[407879388,1772874640384,-961.58486559,0.00017872,2]
[407879389,1772874640393,-5090.35551488,0.000179,2]
[407879390,1772874640402,-5090.35551486,0.000179,2]
[407879391,1772874640411,-1272.58887873,0.000179,2]
[407879392,1772874640420,-1272.58887871,0.000179,2]
[407879393,1772874640429,-1272.58887871,0.000179,2]
[407879394,1772874640438,-1272.58887871,0.000179,2]
[407879395,1772874640447,-215.92434392,0.00017925,2]
[407879396,1772874640457,-997.16350561,0.00017927,2]
[407879397,1772874640465,-645.40529788,0.00017973,2]
[407879398,1772874640478,-164.89,0.00018013,2]
[407879399,1772874640487,-737.02,0.00018063,2]
[407879400,1772874640497,-164.92,0.00018283,2]
[407879401,1772874640506,-645.40529788,0.00018294,2]
[407879402,1772874640515,-500.0,0.00018508,2]
[407879403,1772874640524,-500.0,0.00018508,2]
[407879404,1772874640533,-500.0,0.00018508,2]
[407879405,1772874640542,-500.0,0.00018508,2]
[407879406,1772874640551,-500.0,0.00018508,2]
[407879407,1772874640561,-500.0,0.00018508,2]
[407879408,1772874640570,-500.0,0.00018508,2]
[407879409,1772874640579,-500.0,0.00018508,2]
[407879410,1772874640587,-500.0,0.00018508,2]
[407879411,1772874640596,-500.0,0.00018508,2]
[407879412,1772874640605,-500.0,0.00018508,2]
[407879413,1772874640615,-500.0,0.00018508,2]
[407879414,1772874640624,-500.0,0.00018508,2]
[407879415,1772874640633,-302.76533972,0.00018508,2]
[407879416,1772874640642,-500.0,0.00018508,2]
[407879417,1772874640652,-5756.51,0.00018509,2]
[407879418,1772874640661,-645.40529788,0.00018616,2]
[407879419,1772874640670,-1079.47937026,0.00018624,2]
[407879420,1772874640679,-2000.0,0.00018692,2]
[407879421,1772874640688,-5090.35551486,0.00018724,2]
[407879422,1772874640697,-1079.47937026,0.00018806,2]
[407879423,1772874640707,-737.02,0.00018884,2]
[407879424,1772874640716,-645.40529788,0.00018937,2]
[407879425,1772874640725,-1079.47937026,0.00018989,2]
[407879426,1772874640734,-400.0,0.00019,6]
[407879427,1772874640743,-900.0,0.000191,6]
[407879428,1772874640752,-200.0,0.00019103,2]
[407879429,1772874640761,-1079.47937026,0.00019171,2]
[407879430,1772874640770,-2728.39,0.00019175,2]
[407879431,1772874640779,-663.02,0.00019178,30]
[407879432,1772874640788,-1300.0,0.000192,7]
[407879433,1772874640797,-645.40529788,0.00019258,2]
[407879434,1772874640806,-1800.0,0.000193,7]
[407879435,1772874640817,-1816.36,0.00019346,2]
[407879436,1772874640826,-980.84,0.00019346,2]
[407879437,1772874640835,-1079.47937026,0.00019353,2]
[407879438,1772874640844,-2200.0,0.000194,7]
[407879439,1772874640853,-172.78723296,0.00019445,2]
[407879440,1772874640866,-2000.0,0.000195,2]
[407879441,1772874640875,-400.0,0.000195,7]
[407879442,1772874640884,-1079.47937026,0.00019535,2]
[407879443,1772874640893,-645.40529788,0.00019579,2]
[407879444,1772874640902,-513.06767791,0.00019582,2]
[407879445,1772874640911,-4162.81054729,0.000196,2]
[407879446,1772874640921,-400.0,0.000196,7]
[407879447,1772874640930,-513.06767791,0.00019617,2]
[407879448,1772874640939,-513.06767791,0.00019653,2]
[407879449,1772874640948,-6750.3714,0.00019654,2]
[407879450,1772874640957,-153.55883276,0.00019682,2]
[407879451,1772874640966,-513.06767791,0.00019688,2]
[407879452,1772874640975,-485.07925419,0.00019699,2]
[407879453,1772874640986,-500.0,0.00019699,2]
[407879454,1772874640995,-418.0,0.00019699,2]
[407879455,1772874641005,-500.0,0.00019699,2]
[407879456,1772874641014,-500.0,0.00019699,2]
[407879457,1772874641024,-150.0,0.00019699,2]
[407879458,1772874641033,-631.0,0.00019699,2]
[407879459,1772874641042,-500.0,0.00019699,2]
[407879460,1772874641051,-150.0,0.00019699,2]
[407879461,1772874641061,-893.0,0.00019699,2]
[407879462,1772874641070,-264.04850966,0.00019699,2]
[407879463,1772874641079,-500.0,0.00019699,2]
[407879464,1772874641088,-400.0,0.000197,7]
[407879465,1772874641098,-737.02,0.00019705,2]
[407879467,1772874641107,-1768.886,0.00019711,2]
[407879468,1772874641116,-1079.47937026,0.00019718,2]
[407879469,1772874641125,-513.06767791,0.00019723,2]
[407879470,1772874641135,-500.0,0.00019725,2]
[407879471,1772874641144,-154.76984687,0.0001973,2]
[407879472,1772874641154,-500.0,0.00019754,2]
[407879473,1772874641163,-418.0,0.00019754,2]
[407879474,1772874641173,-406.05910409,0.00019754,2]
[407879475,1772874641184,-500.0,0.00019754,2]
[407879476,1772874641194,-631.0,0.00019754,2]
[407879477,1772874641205,-500.0,0.00019754,2]
[407879478,1772874641214,-893.0,0.00019754,2]
[407879479,1772874641225,-500.0,0.00019754,2]
[407879480,1772874641239,-513.06767791,0.00019759,2]
[407879481,1772874641249,-513.06767791,0.00019794,2]
[407879482,1772874641259,-2000.0,0.000198,2]
[407879483,1772874641269,-2000.0,0.000198,2]
[407879484,1772874641280,-2000.0,0.000198,2]
[407879485,1772874641290,-2000.0,0.000198,2]
[407879486,1772874641302,-400.0,0.000198,7]
[407879487,1772874641313,-200.0,0.00019809,2]
[407879488,1772874641323,-418.0,0.00019809,2]
[407879489,1772874641334,-500.0,0.00019809,2]
[407879490,1772874641343,-631.0,0.00019809,2]
[407879491,1772874641354,-500.0,0.00019809,2]
[407879492,1772874641364,-893.0,0.00019809,2]
[407879493,1772874641374,-500.0,0.00019809,2]
[407879494,1772874641384,-513.06767791,0.00019829,2]
[407879495,1772874641393,-500.0,0.00019848,2]
[407879496,1772874641404,-151.0,0.00019848,2]
[407879497,1772874641415,-500.0,0.00019848,2]
[407879498,1772874641425,-151.0,0.00019848,2]
[407879499,1772874641435,-500.0,0.00019848,2]
[407879500,1772874641444,-151.0,0.00019848,2]
[407879501,1772874641454,-500.0,0.00019848,2]
[407879502,1772874641465,-151.0,0.00019848,2]
[407879503,1772874641476,-500.0,0.00019848,2]
[407879504,1772874641485,-151.0,0.00019848,2]
[407879505,1772874641495,-500.0,0.00019848,2]
[407879506,1772874641504,-151.0,0.00019848,2]
[407879507,1772874641516,-500.0,0.00019848,2]
[407879508,1772874641527,-151.0,0.00019848,2]
[407879509,1772874641538,-500.0,0.00019848,2]
[407879510,1772874641548,-151.0,0.00019848,2]
[407879511,1772874641558,-300.97435296,0.00019848,2]
[407879512,1772874641567,-151.0,0.00019848,2]
[407879513,1772874641577,-151.0,0.00019848,2]
[407879514,1772874641587,-151.0,0.00019848,2]
[407879515,1772874641596,-500.0,0.00019848,2]
[407879516,1772874641608,-500.0,0.00019848,2]
[407879517,1772874641623,-500.0,0.00019848,2]
[407879518,1772874641635,-500.0,0.00019848,2]
[407879519,1772874641645,-500.0,0.00019848,2]
[407879520,1772874641656,-500.0,0.00019848,2]
[407879521,1772874641666,-500.0,0.00019848,2]
[407879522,1772874641676,-240.4496104,0.00019848,2]
[407879523,1772874641686,-504.38999336,0.00019848,2]
[407879524,1772874641696,-500.0,0.00019848,2]
[407879525,1772874641706,-500.0,0.00019848,2]
[407879526,1772874641719,-500.0,0.00019848,2]
[407879527,1772874641729,-500.0,0.00019848,2]
[407879528,1772874641738,-500.0,0.00019848,2]
[407879529,1772874641747,-500.0,0.00019848,2]
[407879530,1772874641757,-500.0,0.00019848,2]
[407879531,1772874641768,-500.0,0.00019848,2]
[407879532,1772874641779,-500.0,0.00019848,2]
[407879533,1772874641789,-500.0,0.00019848,2]
[407879534,1772874641798,-500.0,0.00019848,2]
[407879535,1772874641808,-78820.9388,0.0001986,2]
[407879536,1772874641818,-361.125,0.00019863,2]
[407879537,1772874641829,-418.0,0.00019863,2]
[407879538,1772874641838,-500.0,0.00019863,2]
[407879539,1772874641847,-631.0,0.00019863,2]
[407879540,1772874641859,-500.0,0.00019863,2]
[407879541,1772874641868,-893.0,0.00019863,2]
[407879542,1772874641879,-500.0,0.00019863,2]
[407879543,1772874641889,-513.06767791,0.00019865,2]
[407879544,1772874641899,-500.0,0.00019873,2]
[407879545,1772874641908,-3211.71,0.00019885,2]
[407879546,1772874641919,-3211.71,0.00019885,2]
[407879547,1772874641928,-3211.71,0.00019885,2]
[407879548,1772874641939,-3211.71,0.00019885,2]
[407879549,1772874641950,-3211.71,0.00019885,2]
[407879550,1772874641959,-5751.35,0.00019885,2]
[407879551,1772874641969,-1000.0,0.000199,2]
[407879552,1772874641979,-769.18382815,0.000199,3]
[407879553,1772874641989,-2132.46388994,0.000199,2]
[407879554,1772874642002,-5000.0,0.000199,2]
[407879555,1772874642013,-844.0,0.000199,7]
[407879556,1772874642022,-1079.47937026,0.000199,2]
[407879557,1772874642032,-513.06767791,0.000199,2]
[407879558,1772874642042,-159.26918166,0.000199,2]
[407879559,1772874642051,-3672.2060339,0.000199,2]
[407879560,1772874642060,-6185.87420303,0.000199,2]
[407879561,1772874642069,-179.0,0.000199,3]
[407879562,1772874642467,-156.0,0.000199,3]
[407879563,1772874642478,-160.0,0.000199,3]
[407879564,1772874642488,-418.0,0.00019918,2]
[407879565,1772874642497,-500.0,0.00019918,2]
[407879566,1772874642506,-631.0,0.00019918,2]
[407879567,1772874642515,-500.0,0.00019918,2]
[407879568,1772874642524,-893.0,0.00019918,2]
[407879569,1772874642533,-500.0,0.00019918,2]
[407879570,1772874642542,-151.0,0.00019947,2]
[407879571,1772874642551,-150.0,0.00019947,2]
[407879572,1772874642560,-300126.52033476,0.0001995,15]
[407879573,1772874642569,-500.0,0.00019973,2]
[407879574,1772874642578,-418.0,0.00019973,2]
[407879575,1772874642587,-526.55476406,0.00019973,2]
[407879576,1772874642595,-631.0,0.00019973,2]
[407879577,1772874642604,-500.0,0.00019973,2]
[407879578,1772874642613,-893.0,0.00019973,2]
[407879579,1772874642622,-500.0,0.00019973,2]
[407879580,1772874642632,-228.31209333,0.00019973,2]
[407879581,1772874642641,-277.35097797,0.0001999,2]
[407879583,1772874642651,-277.35097797,0.0001999,2]
[407879584,1772874642659,-277.35097797,0.0001999,2]
[407879585,1772874642668,-1838.0,0.00019997,2]
[407879586,1772874642678,-151.0,0.00019997,2]
[407879587,1772874642688,-367.61197577,0.00019998,2]
[407879588,1772874642697,-500.0,0.00019998,2]
[407879589,1772874642706,-666.0,0.00019999,2]
[407879590,1772874642715,-300.0,0.00019999,2]
[407879591,1772874642724,-307.90810153,0.00019999,2]
[407879592,1772874642732,-672.16452504,0.00019999,2]
[407879593,1772874642742,-300.0,0.00019999,2]
[407879594,1772874642751,-1295.19930182,0.00019999,5]
[407879596,1772874642760,-1295.19930182,0.00019999,5]
[407879598,1772874642770,-1295.19930183,0.00019999,5]
[407879600,1772874642779,-500.0,0.00019999,2]
[407879602,1772874642788,-343.44849106,0.00019999,2]
[407879604,1772874642797,-256.75572098,0.00019999,2]
[407879606,1772874642806,-432.15922613,0.00019999,2]
[407879607,1772874642815,-247.02385588,0.00019999,2]
[407879608,1772874642824,-500.0,0.00019999,2]
[407879609,1772874642835,-492.41696432,0.00019999,2]
[407879610,1772874642844,-300.0,0.00019999,2]
[407879611,1772874642853,-519.0,0.0002,7]
[407879612,1772874642864,-1853.0,0.0002,2]
[407879613,1772874642876,-3231340.27809721,0.0002,2]
[407879614,1772874642893,-361.125,0.0002,2]
[407879615,1772874643033,-316.4888163,0.0002,2]
[407879616,1772874643048,-337.12858955,0.0002,2]
[407879626,1772874646111,-645.40529788,0.000199,2]
[407879627,1772874646122,-922.59470212,0.0002,2]
[407879635,1772875039641,500.0,0.00011333,2]
[407879636,1772875040110,500.0,0.00011333,2]
[407879637,1772875040773,526.16220326,8e-05,2]
[407879638,1772875335815,203.223714,0.00011333,2]
[407879639,1772875336463,362.95691598,0.00011333,2]
[407879640,1772875337785,473.11746355,0.00011333,2]
[407879641,1772875591568,-209.23570823,0.00013333,2]
[407879642,1772875635308,203.223714,0.00011333,2]
[407879643,1772875635343,314.48391402,0.00011333,2]
[407879644,1772875640152,500.0,0.00011333,2]
[407879652,1772875831823,-293.76429177,0.00013333,2]
[407879653,1772875831833,-228.67292946,0.00013333,2]
[407879654,1772875831844,-31.32707054,0.00013333,2]
[407879655,1772875831853,-176.69,0.00013625,2]
[407879656,1772875831862,-2561.3864027,0.0001391,2]
[407879657,1772875831871,-200.0,0.00014407,2]
[407879658,1772875831880,-180.416132,0.00014519,2]
[407879659,1772875831889,-912.45257668,0.00014665,2]
[407879660,1772875831900,-287.54742332,0.00014665,2]
[407879661,1772875831909,-5000.0,0.00014666,2]
[407879662,1772875831918,-1038.4,0.00015271,2]
[407879663,1772875831927,-500.0,0.00015311,2]
[407879664,1772875831937,-300.0,0.00015932,2]
[407879665,1772875831946,-125318.9298,0.00015933,2]
[407879666,1772875831955,-1000.0,0.00015933,2]
[407879667,1772875831964,-428.86487949,0.00015933,2]
[407879668,1772875831973,-621.0,0.00016018,2]
[407879669,1772875831983,-500.0,0.00016023,2]
[407879670,1772875831991,-151.0,0.00016023,2]
[407879672,1772875832000,-500.0,0.00016023,2]
[407879673,1772875832010,-151.0,0.00016023,2]
[407879674,1772875832019,-500.0,0.00016023,2]
[407879675,1772875832028,-151.0,0.00016023,2]
[407879676,1772875832037,-151.0,0.00016023,2]
[407879677,1772875832046,-151.0,0.00016023,2]
[407879679,1772875832055,-151.0,0.00016023,2]
[407879681,1772875832063,-151.0,0.00016023,2]
[407879683,1772875832073,-300.97435296,0.00016023,2]
[407879684,1772875832082,-151.0,0.00016023,2]
[407879685,1772875832091,-151.0,0.00016023,2]
[407879686,1772875832100,-151.0,0.00016023,2]
[407879687,1772875832110,-151.0,0.00016023,2]
[407879688,1772875832118,-500.0,0.00016023,2]
[407879689,1772875832128,-500.0,0.00016023,2]
[407879690,1772875832137,-500.0,0.00016023,2]
[407879691,1772875832146,-500.0,0.00016023,2]
[407879692,1772875832155,-500.0,0.00016023,2]
[407879693,1772875832164,-500.0,0.00016023,2]
[407879694,1772875832174,-500.0,0.00016023,2]
[407879695,1772875832184,-240.4496104,0.00016023,2]
[407879696,1772875832194,-504.38999336,0.00016023,2]
[407879697,1772875832204,-1116.2,0.00016023,2]
[407879698,1772875832213,-8711.74,0.00016023,2]
[407879699,1772875832223,-6379.8,0.00016033,2]
[407879700,1772875832233,-349.99,0.00016033,2]
[407879701,1772875832242,-5926.93,0.00016033,2]
[407879702,1772875832251,-9431.45,0.00016033,2]
[407879703,1772875832260,-201.11989857,0.00016033,2]
[407879704,1772875832270,-150.99,0.00016033,2]
[407879705,1772875832279,-200.0,0.00016064,2]
[407879706,1772875832289,-500.0,0.00016073,2]
[407879707,1772875832298,-500.0,0.00016073,2]
[407879708,1772875832308,-503.0,0.00016111,4]
[407879709,1772875832318,-159.21,0.00016123,2]
[407879710,1772875832328,-480.0,0.00016132,2]
[407879711,1772875832337,-2000.0,0.00016233,2]
[407879712,1772875832347,-2000.0,0.00016233,2]
[407879713,1772875832358,-150.0,0.00016333,2]
[407879714,1772875832367,-505.19818283,0.00016347,2]
[407879715,1772875832376,-428.86487949,0.00016374,2]
[407879716,1772875832386,-159.21,0.00016393,2]
[407879717,1772875832396,-159.21,0.00016663,2]
[407879718,1772875832406,-428.86487949,0.00016815,2]
[407879719,1772875832415,-365.66,0.00016823,2]
[407879720,1772875832425,-373.56,0.00016823,2]
[407879721,1772875832435,-205.0,0.00016877,2]
[407879722,1772875832445,-159.21,0.00016933,2]
[407879723,1772875832454,-1578.75,0.00016979,2]
[407879724,1772875832464,-150.0,0.00016985,2]
[407879725,1772875832474,-367.61197577,0.00016999,2]
[407879726,1772875832483,-500.0,0.00016999,2]
[407879727,1772875832492,-326.22,0.00017005,2]
[407879728,1772875832505,-153.91461826,0.00017032,2]
[407879729,1772875832515,-159.22,0.00017203,2]
[407879730,1772875832524,-428.86487949,0.00017255,2]
[407879731,1772875832534,-1578.75,0.00017403,2]
[407879732,1772875832543,-200.0,0.00017638,2]
[407879733,1772875832553,-428.86487949,0.00017696,2]
[407879734,1772875832563,-1600.0,0.00017771,2]
[407879735,1772875832573,-1578.75,0.00017827,2]
[407879736,1772875832587,-282.48,0.00017829,2]
[407879737,1772875832597,-1485.66761023,0.000179,2]
[407879738,1772875832607,-500.0,0.00017912,2]
[407879739,1772875832617,-199.8,0.00018,4]
[407879740,1772875832626,-200.0,0.00018109,2]
[407879741,1772875832637,-428.86487949,0.00018137,2]
[407879742,1772875832646,-3609.2,0.00018243,2]
[407879743,1772875832656,-1578.75,0.00018252,2]
[407879744,1772875832665,-167.37,0.00018499,2]
[407879745,1772875832674,-428.86487949,0.00018578,2]
[407879746,1772875832684,-1578.75,0.00018676,2]
[407879747,1772875832693,-1482.67,0.00018863,2]
[407879748,1772875832703,-168.0,0.0001887,2]
[407879749,1772875832712,-503.0,0.00018888,6]
[407879750,1772875832721,-500.0,0.00018999,2]
[407879751,1772875832731,-693.3919763,0.00018999,2]
[407879752,1772875832740,-500.0,0.00018999,2]
[407879753,1772875832750,-500.0,0.00018999,2]
[407879754,1772875832759,-500.0,0.00018999,2]
[407879755,1772875832769,-500.0,0.00018999,2]
[407879756,1772875832778,-500.0,0.00018999,2]
[407879757,1772875832788,-500.0,0.00018999,2]
[407879758,1772875832797,-500.0,0.00018999,2]
[407879759,1772875832807,-500.0,0.00018999,2]
[407879760,1772875832816,-500.0,0.00018999,2]
[407879761,1772875832826,-500.0,0.00018999,2]
[407879762,1772875832835,-500.0,0.00018999,2]
[407879763,1772875832845,-428.86487949,0.00019018,2]
[407879764,1772875832854,-719.04747942,0.00019054,2]
[407879765,1772875832863,-1000.0,0.000191,6]
[407879766,1772875832874,-200.0,0.000191,6]
[407879767,1772875832884,-745.65223616,0.00019109,2]
[407879768,1772875832893,-200.0,0.00019134,2]
[407879769,1772875832903,-773.2413689,0.00019164,2]
[407879770,1772875832913,-2000.0,0.000192,2]
[407879771,1772875832923,-2100.0,0.000192,7]
[407879772,1772875832933,-500.0,0.000192,7]
[407879773,1772875832943,-801.85129955,0.00019219,2]
[407879774,1772875832952,-831.51979763,0.00019274,2]
[407879775,1772875832963,-3100.0,0.000193,7]
[407879776,1772875832972,-700.0,0.000193,7]
[407879777,1772875832982,-862.28603014,0.00019329,2]
[407879778,1772875832991,-269.8698426,0.00019339,2]
[407879779,1772875833000,-365.66,0.00019346,2]
[407879780,1772875833010,-373.56,0.00019346,2]
[407879781,1772875833019,-894.19061326,0.00019384,2]
[407879782,1772875833029,-4200.0,0.000194,7]
[407879783,1772875833039,-1000.0,0.000194,7]
[407879784,1772875833048,-269.86984256,0.00019419,2]
[407879785,1772875833058,-927.27566595,0.00019439,2]
[407879786,1772875833067,-428.86487949,0.00019459,2]
[407879787,1772875833076,-961.58486559,0.00019494,2]
[407879788,1772875833086,-269.86984256,0.00019499,2]
[407879789,1772875833095,-172.78723296,0.000195,7]
[407879790,1772875833104,-5200.0,0.000195,7]
[407879791,1772875833114,-1200.0,0.000195,7]
[407879792,1772875833124,-997.16350561,0.00019549,2]
[407879793,1772875833134,-269.86984256,0.00019579,2]
[407879794,1772875833147,-1000.0,0.000196,7]
[407879795,1772875833156,-200.0,0.000196,7]
[407879796,1772875833166,-4162.81054729,0.000196,2]
[407879797,1772875833175,-269.86984256,0.0001966,2]
[407879798,1772875833184,-500.0,0.00019699,2]
[407879799,1772875833193,-485.07925419,0.00019699,2]
[407879800,1772875833204,-418.0,0.00019699,2]
[407879801,1772875833213,-500.0,0.00019699,2]
[407879802,1772875833222,-500.0,0.00019699,2]
[407879803,1772875833231,-631.0,0.00019699,2]
[407879804,1772875833240,-150.0,0.00019699,2]
[407879805,1772875833249,-500.0,0.00019699,2]
[407879806,1772875833258,-150.0,0.00019699,2]
[407879807,1772875833267,-893.0,0.00019699,2]
[407879808,1772875833276,-528.11610231,0.000197,2]
[407879809,1772875833290,-1000.0,0.000197,7]
[407879810,1772875833311,-200.0,0.000197,7]
[407879811,1772875833330,-153.55883276,0.00019715,2]
[407879812,1772875833339,-242.58,0.00019723,2]
[407879813,1772875833349,-193.077,0.00019727,2]
[407879814,1772875833358,-2062.758,0.00019727,2]
[407879815,1772875833368,-269.86984256,0.0001974,2]
[407879816,1772875833378,-500.0,0.00019754,2]
[407879817,1772875833387,-418.0,0.00019754,2]
[407879818,1772875833397,-406.05910409,0.00019754,2]
[407879819,1772875833407,-500.0,0.00019754,2]
[407879820,1772875833416,-631.0,0.00019754,2]
[407879821,1772875833426,-500.0,0.00019754,2]
[407879822,1772875833435,-893.0,0.00019754,2]
[407879823,1772875833445,-13070.74715496,0.0001978,2]
[407879824,1772875833454,-2000.0,0.000198,2]
[407879825,1772875833464,-2000.0,0.000198,2]
[407879826,1772875833473,-231.66026894,0.000198,2]
[407879827,1772875833483,-1000.0,0.000198,7]
[407879828,1772875833493,-200.0,0.000198,7]